bitfinex/quotes_SOLUSD_20250917
["timestamp","ask_amount","ask_price","bid_price","bid_amount"]
[1758097049692,5.5945564,236.29,236.22,1.33236281]
[1758097049892,4.29219359,236.29,236.22,1.33236281]
[1758097050112,5.5945564,236.29,236.22,1.33236281]
[1758097051179,0.06,236.26,236.22,1.33236281]
[1758097051602,0.06,236.26,236.22,5.56570209]
[1758097052307,0.06,236.26,236.22,1.33236281]
[1758097055517,0.06,236.26,236.22,0.03]
[1758097057304,0.06,236.26,236.25,1.30236281]
[1758097057623,0.06,236.26,236.25,15.18227996]
[1758097058998,0.06,236.26,236.25,19.41508419]
[1758097060507,0.06,236.26,236.25,53.31508419]
[1758097064215,0.06,236.26,236.25,133.23836461]
[1758097064421,0.06,236.26,236.25,132.81508419]
[1758097065031,0.06,236.29,236.28,39.73775558]
[1758097065319,0.06,236.29,236.28,41.18227996]
[1758097065506,0.06,236.29,236.28,75.06227996]
[1758097066410,0.06,236.29,236.28,79.29454676]
[1758097067316,0.06,236.29,236.28,82.65092219]
[1758097068602,0.06,236.31,236.29,13.87991715]
[1758097068809,0.06,236.31,236.3,15.60547081]
[1758097070226,0.06,236.31,236.3,19.8373794]
[1758097071524,0.06,236.31,236.3,53.6973794]
[1758097075522,0.06,236.32,236.31,39.87991715]
[1758097075724,0.06,236.32,236.31,41.18227996]
[1758097075930,0.06,236.32,236.31,15.18227996]
[1758097076831,0.06,236.32,236.31,49.02227996]
[1758097078012,0.06,236.32,236.31,49.44545291]
[1758097078516,0.06,236.32,236.31,53.67718241]
[1758097079118,0.06,236.32,236.31,131.8748196]
[1758097079438,0.06,236.32,236.31,132.75400946]
[1758097079938,0.06,236.32,236.31,131.45164665]
[1758097080123,0.06,236.32,236.31,132.75400946]
[1758097082738,0.06,236.32,236.31,98.91400946]
[1758097082939,0.06,236.32,236.31,132.73400946]
[1758097083145,0.06,236.34,236.33,39.87991715]
[1758097083324,0.06,236.34,236.33,80.63486833]
[1758097084140,0.06,236.34,236.33,84.86623971]
[1758097084522,0.06,236.34,236.33,86.56018597]
[1758097084723,0.06,236.34,236.33,86.13704884]
[1758097086233,0.06,236.35,236.34,13.87991715]
[1758097086433,0.06,236.35,236.34,14.30303638]
[1758097086650,0.06,236.35,236.34,20.81485043]
[1758097088549,0.06,236.35,236.34,33.66210734]
[1758097089052,0.06,236.37,236.36,39.87991715]
[1758097089246,0.06,236.37,236.36,75.40536339]
[1758097089557,0.06,236.38,236.36,154.90536339]
[1758097089852,0.1,236.4,236.39,39.87991715]
[1758097090154,0.1,236.4,236.39,76.13284033]
[1758097091035,0.1,236.4,236.39,80.36313771]
[1758097094038,0.1,236.4,236.39,159.86313771]
[1758097094243,0.1,236.4,236.39,159.44010798]
[1758097097248,0.1,236.42,236.4,13.87991715]
[1758097097451,0.1,236.42,236.4,16.33282244]
[1758097098742,1e-08,236.42,236.4,100.06294088]
[1758097098961,1e-08,236.42,236.41,49.6898106]
[1758097099638,1e-08,236.42,236.41,51.38311147]
[1758097100245,1e-08,236.43,236.42,13.87991715]
[1758097100443,1e-08,236.43,236.42,95.4098106]
[1758097100641,1e-08,236.43,236.42,129.1698106]
[1758097101454,1e-08,236.43,236.42,133.39957119]
[1758097104339,1e-08,236.43,236.42,97.60967774]
[1758097104556,1e-08,236.43,236.4,81.19337256]
[1758097104838,1e-08,236.43,236.37,2.02989345]
[1758097105050,1e-08,236.43,236.38,35.76989345]
[1758097105363,1e-08,236.43,236.4,2.02989345]
[1758097105567,1e-08,236.43,236.41,33.74]
[1758097106144,1e-08,236.43,236.41,35.76989345]
[1758097106445,1e-08,236.43,236.42,13.87991715]
[1758097107137,1e-08,236.43,236.42,15.9098106]
[1758097107553,1e-08,236.43,236.42,0.28432314]
[1758097107856,1e-08,236.43,236.42,33.74]
[1758097108563,1e-08,236.43,236.42,47.61991715]
[1758097108744,1e-08,236.43,236.42,49.6498106]
[1758097108938,1e-08,236.43,236.42,47.61991715]
[1758097109942,1e-08,236.43,236.42,33.74]
[1758097112960,2.02989346,236.43,236.42,33.74]
[1758097113552,1e-08,236.43,236.42,33.74]
[1758097117151,2.02989346,236.43,236.42,33.74]
[1758097117357,1e-08,236.43,236.42,33.74]
[1758097118071,1e-08,236.43,236.4,33.72]
[1758097121073,1e-08,236.43,236.4,33.75]
[1758097121460,2.02989346,236.43,236.4,33.75]
[1758097121668,1e-08,236.43,236.4,33.75]
[1758097121857,2.02989346,236.43,236.4,33.75]
[1758097122062,1e-08,236.43,236.4,33.75]
[1758097122673,2.02989346,236.43,236.4,33.75]
[1758097123670,4.22976059,236.42,236.4,33.75]
[1758097125279,4.22976059,236.42,236.4,0.03]
[1758097125280,2.02989345,236.41,236.4,0.03]
[1758097125576,3.08816085,236.41,236.4,0.03]
[1758097133461,7.31810036,236.41,236.4,0.03]
[1758097134382,1.0582674,236.41,236.4,0.03]
[1758097134573,4.22975873,236.43,236.4,0.03]
[1758097135164,4.22975873,236.43,236.4,2.05989345]
[1758097135590,4.22975873,236.43,236.4,0.03]
[1758097139877,6.25965218,236.43,236.4,0.03]
[1758097140195,2.02989345,236.41,236.4,0.03]
[1758097141005,2.02989345,236.42,236.4,0.03]
[1758097141769,6.25983296,236.41,236.4,0.03]
[1758097142381,7.31814058,236.41,236.4,0.03]
[1758097143195,40.97814058,236.41,236.4,0.03]
[1758097145700,40.97814058,236.41,236.35,0.03]
[1758097145701,26.0,236.38,236.35,0.03]
[1758097145910,2.02989345,236.36,236.35,0.03]
[1758097146603,6.26072777,236.36,236.35,0.03]
[1758097148290,7.31934402,236.36,236.35,0.03]
[1758097149016,7.31935936,236.36,236.35,0.03]
[1758097150388,9.34925281,236.36,236.35,0.03]
[1758097150591,26.0,236.33,236.26,0.03]
[1758097150796,2.02989345,236.27,236.26,0.03]
[1758097150997,33.64,236.32,236.26,0.03]
[1758097151199,2.02989345,236.27,236.26,0.03]
[1758097151396,2.02989345,236.28,236.26,0.03]
[1758097151708,2.02989345,236.29,236.26,0.03]
[1758097151885,1.30190565,236.29,236.26,0.03]
[1758097152286,14.81105326,236.31,236.26,0.03]
[1758097152504,1.30190565,236.29,236.26,0.03]
[1758097153396,1.30190565,236.28,236.26,0.03]
[1758097153595,4.23243106,236.28,236.26,0.03]
[1758097154587,5.53433671,236.28,236.26,0.03]
[1758097154805,1.30190565,236.27,236.26,0.03]
[1758097155206,4.23243106,236.28,236.26,0.03]
[1758097155511,1.30190565,236.27,236.26,0.03]
[1758097156320,5.53433671,236.28,236.26,0.03]
[1758097156495,5.53398794,236.3,236.26,0.03]
[1758097159231,9.10932035,236.55,236.26,0.03]
[1758097159232,4.2316763,236.32,236.26,0.03]
[1758097160915,5.53358195,236.32,236.26,0.03]
[1758097161497,4.2316763,236.32,236.26,0.03]
[1758097161698,4.2316763,236.32,236.27,1.30190565]
[1758097162589,4.23137138,236.33,236.27,1.30190565]
[1758097162789,14.80931444,236.34,236.26,1.33190565]
[1758097164097,14.80931444,236.34,236.26,5.56451014]
[1758097166233,14.80931444,236.34,236.26,1.33190565]
[1758097167003,14.80931444,236.34,236.26,5.56447814]
[1758097169327,4.23119235,236.34,236.26,5.56447814]
[1758097169545,27.30190565,236.35,236.27,1.58622879]
[1758097169546,26.0,236.35,236.27,1.58622879]
[1758097169744,5.53290397,236.36,236.29,1.30190565]
[1758097170051,10.5755266,236.4,236.31,1.30190565]
[1758097170216,1.05844722,236.39,236.31,1.30190565]
[1758097170942,4.23047635,236.38,236.31,5.53346721]
[1758097171540,5.532382,236.38,236.31,1.30190565]
[1758097171918,0.06,236.35,236.31,1.30190565]
[1758097173526,0.06,236.35,236.31,5.53363285]
[1758097173835,0.06,236.35,236.32,1.30190565]
[1758097174829,0.06,236.35,236.31,1.30190565]
[1758097175029,0.06,236.35,236.28,4.23223161]
[1758097175030,4.29104071,236.35,236.28,4.23223161]
[1758097175239,5.59294636,236.35,236.28,1.30190565]
[1758097175547,1.30190565,236.32,236.26,33.61]
[1758097175750,1.30190565,236.31,236.26,33.61]
[1758097176552,1.30190565,236.3,236.26,0.03]
[1758097176758,1.30190565,236.29,236.26,0.03]
[1758097176954,1.30190565,236.27,236.26,0.03]
[1758097178643,5.53435158,236.27,236.26,0.03]
[1758097179857,4.23244593,236.27,236.26,0.03]
[1758097180235,5.53435158,236.27,236.26,0.03]
[1758097183965,6.5932435,236.27,236.26,0.03]
[1758097185957,8.28912886,236.27,236.26,0.03]
[1758097186658,41.84912886,236.27,236.26,0.03]
[1758097187161,40.1532435,236.27,236.26,0.03]
[1758097188351,6.5932435,236.27,236.26,0.03]
[1758097188652,40.1532435,236.27,236.26,0.03]
[1758097194959,41.84912885,236.27,236.26,0.03]
[1758097195464,6.9872232,236.27,236.26,0.03]
[1758097195766,40.1332435,236.27,236.26,0.03]
[1758097195954,5.29133785,236.27,236.26,0.03]
[1758097196268,5.53435158,236.27,236.26,0.03]
[1758097196860,4.2317295,236.31,236.26,0.03]
[1758097197167,26.0,236.28,236.26,0.03]
[1758097197553,30.23232923,236.28,236.26,0.03]
[1758097198154,4.23232923,236.28,236.26,0.03]
[1758097200164,4.23208768,236.29,236.26,0.03]
[1758097200555,30.23190291,236.31,236.26,0.03]
[1758097200750,4.23149602,236.33,236.28,1.30190565]
[1758097201163,4.29118986,236.35,236.29,1.30190565]
[1758097201342,4.29118986,236.35,236.3,1.30190565]
[1758097201669,1.05879724,236.34,236.28,1.30190565]
[1758097201867,5.59309551,236.35,236.28,1.30190565]
[1758097202250,5.59309551,236.35,236.28,5.53414929]
[1758097202452,4.29118986,236.35,236.29,1.30190565]
[1758097202957,0.06,236.35,236.3,1.30190565]
[1758097203169,0.06,236.35,236.31,1.30190565]
[1758097203750,0.06,236.35,236.32,1.30190565]
[1758097204169,0.06,236.35,236.33,1.30190565]
[1758097204357,0.06,236.35,236.34,1.30190565]
[1758097204553,0.06,236.35,236.34,14.89749966]
[1758097204867,0.06,236.35,236.34,15.1818228]
[1758097205975,0.06,236.35,236.34,20.3894454]
[1758097206179,0.06,236.35,236.34,15.1818228]
[1758097206475,0.06,236.35,236.34,19.41301515]
[1758097206846,0.06,236.35,236.28,36.58022373]
[1758097207047,0.06,236.35,236.34,1.30190565]
[1758097208450,0.06,236.35,236.34,24.62063775]
[1758097209842,0.06,236.35,236.34,19.41301515]
[1758097210056,0.06,236.35,236.34,52.91301515]
[1758097210455,0.06,236.35,236.34,51.6111095]
[1758097210761,0.06,236.35,236.34,52.91301515]
[1758097213876,0.06,236.35,236.34,53.64241746]
[1758097214258,0.06,236.35,236.29,79.5]
[1758097214463,2.09130796,236.35,236.3,33.48]
[1758097215077,6.32237931,236.35,236.3,33.48]
[1758097215655,4.29107135,236.35,236.3,33.48]
[1758097216080,4.29107135,236.35,236.3,35.51130796]
[1758097217175,2.03130796,236.32,236.26,13.62559401]
[1758097217379,2.03130796,236.32,236.27,33.48]
[1758097218072,2.03130796,236.31,236.27,33.48]
[1758097218466,4.2316466,236.32,236.26,0.03]
[1758097218467,2.03130796,236.29,236.26,0.03]
[1758097218663,2.03130796,236.28,236.26,0.03]
[1758097219784,2.03130796,236.29,236.26,0.03]
[1758097219988,6.26327579,236.3,236.26,0.03]
[1758097220186,2.03130796,236.33,236.26,2.06130796]
[1758097220574,26.0,236.31,236.26,0.03]
[1758097220780,28.03130796,236.31,236.26,0.03]
[1758097221164,26.0,236.31,236.26,0.03]
[1758097222572,26.0,236.31,236.26,2.06130796]
[1758097223084,4.23167533,236.32,236.27,2.03130796]
[1758097223471,2.03130796,236.31,236.26,0.03]
[1758097223667,2.03130796,236.29,236.26,0.03]
[1758097223865,2.03130796,236.28,236.26,0.03]
[1758097224393,14.81055143,236.32,236.26,0.03]
[1758097224689,4.23244593,236.27,236.26,0.03]
[1758097225566,6.26375389,236.27,236.26,0.03]
[1758097226692,4.23244593,236.27,236.26,0.03]
[1758097226990,2.03130796,236.28,236.26,0.03]
[1758097228182,4.23244593,236.27,236.26,0.03]
[1758097228689,6.26375389,236.27,236.26,0.03]
[1758097229474,4.23244593,236.27,236.26,0.03]
[1758097230576,2.03130796,236.29,236.26,0.03]
[1758097230776,14.81195345,236.3,236.26,0.03]
[1758097230976,2.03130796,236.29,236.26,0.03]
[1758097232176,2.03130796,236.28,236.26,0.03]
[1758097232494,14.81195345,236.3,236.26,0.03]
[1758097232495,2.03130796,236.27,236.26,0.03]
[1758097232799,6.26375389,236.27,236.26,0.03]
[1758097235193,2.03130796,236.27,236.26,0.03]
[1758097235888,2.03130796,236.28,236.26,0.03]
[1758097236574,2.03130796,236.27,236.26,0.03]
[1758097237795,6.26375389,236.27,236.26,0.03]
[1758097238098,4.23244593,236.27,236.26,0.03]
[1758097238297,6.26375389,236.27,236.26,0.03]
[1758097238501,4.23244593,236.27,236.26,0.03]
[1758097240168,4.23244593,236.27,236.22,1.12130796]
[1758097240797,4.23244593,236.27,236.26,0.03]
[1758097243500,2.03130796,236.28,236.26,0.03]
[1758097243898,4.23208768,236.29,236.26,0.03]
[1758097244107,12.60988544,236.33,236.26,0.03]
[1758097244282,0.06,236.4,236.29,2.03130796]
[1758097244478,0.06,236.4,236.31,2.03130796]
[1758097244479,4.12261592,236.38,236.31,2.03130796]
[1758097244701,4.23099749,236.36,236.33,2.03130796]
[1758097244893,6.3219036,236.38,236.34,2.03130796]
[1758097245284,4.29059564,236.38,236.34,2.03130796]
[1758097245603,0.06,236.38,236.34,2.03130796]
[1758097246280,4.29048681,236.38,236.34,2.03130796]
[1758097247187,0.06,236.38,236.3,4.37402727]
[1758097247383,0.06,236.38,236.33,2.03130796]
[1758097247886,2.09130796,236.38,236.32,2.03130796]
[1758097248096,4.23076075,236.37,236.32,2.03130796]
[1758097248414,4.23076075,236.37,236.33,2.03130796]
[1758097248904,0.06,236.38,236.34,2.03130796]
[1758097249805,4.23066248,236.37,236.33,2.03130796]
[1758097250007,0.06,236.38,236.32,2.03130796]
[1758097250008,2.09130796,236.38,236.32,2.03130796]
[1758097250711,2.09130796,236.38,236.34,2.03130796]
[1758097250712,4.23075936,236.37,236.34,2.03130796]
[1758097250897,4.23075936,236.37,236.33,2.03130796]
[1758097251613,0.06,236.38,236.34,2.03130796]
[1758097251791,4.29049198,236.38,236.34,2.03130796]
[1758097252502,4.29049198,236.38,236.29,33.42]
[1758097252503,2.09130796,236.38,236.29,33.42]
[1758097252810,2.03130796,236.37,236.31,2.03130796]
[1758097253414,2.03130796,236.32,236.26,0.03]
[1758097253593,2.03130796,236.3,236.26,0.03]
[1758097253793,2.03130796,236.29,236.26,0.03]
[1758097254099,2.03130796,236.28,236.26,0.03]
[1758097255505,26.0,236.31,236.26,0.03]
[1758097255696,2.03130796,236.28,236.26,0.03]
[1758097256321,2.03130796,236.27,236.26,0.03]
[1758097256503,2.03130796,236.28,236.26,0.03]
[1758097256701,2.03130796,236.29,236.26,0.03]
[1758097256897,4.23200065,236.3,236.26,0.03]
[1758097257106,6.26303437,236.32,236.26,0.03]
[1758097257292,2.03130796,236.31,236.26,0.03]
[1758097257491,2.03130796,236.3,236.26,0.03]
[1758097257897,2.03130796,236.29,236.26,0.03]
[1758097258504,6.26328341,236.3,236.26,0.03]
[1758097259210,2.03130796,236.29,236.26,0.03]
[1758097260091,6.26339644,236.29,236.26,0.03]
[1758097260390,0.06,236.35,236.26,0.03]
[1758097260391,4.23182284,236.31,236.26,0.03]
[1758097260700,2.03130796,236.3,236.26,0.03]
[1758097261411,2.03130796,236.29,236.26,0.03]
[1758097261715,2.03130796,236.3,236.26,0.03]
[1758097262013,4.23182284,236.31,236.26,0.03]
[1758097262316,6.26335996,236.3,236.26,0.03]
[1758097263605,4.232052,236.3,236.26,0.03]
[1758097263810,2.03130796,236.34,236.28,2.03130796]
[1758097264218,2.03130796,236.34,236.27,2.03130796]
[1758097264402,2.03130796,236.33,236.26,2.06130796]
[1758097264910,0.06,236.35,236.27,2.3156311]
[1758097264911,2.03130796,236.34,236.27,2.3156311]
[1758097265790,4.29110451,236.35,236.27,0.28432314]
[1758097265996,4.29110451,236.35,236.29,2.03130796]
[1758097266319,0.06,236.35,236.3,2.03130796]
[1758097268209,0.06,236.35,236.31,13.87991715]
[1758097268404,0.06,236.35,236.32,2.03130796]
[1758097269322,0.06,236.35,236.33,2.03130796]
[1758097269724,0.06,236.35,236.33,6.26257778]
[1758097269901,0.06,236.35,236.33,2.03130796]
[1758097270220,0.06,236.35,236.33,4.23133393]
[1758097270521,0.06,236.35,236.34,35.39130796]
[1758097271225,0.06,236.35,236.34,33.36]
[1758097275826,0.06,236.35,236.34,47.23991715]
[1758097276028,0.06,236.35,236.34,33.34]
[1758097276924,0.06,236.35,236.31,15.1802063]
[1758097277128,0.06,236.35,236.33,13.87991715]
[1758097278129,0.06,236.35,236.34,33.34]
[1758097283819,0.06,236.35,236.34,34.64028915]
[1758097284021,0.06,236.35,236.34,52.75139865]
[1758097284812,0.06,236.35,236.34,58.37567448]
[1758097285018,0.06,236.38,236.37,39.59559401]
[1758097285248,0.06,236.38,236.37,41.1802063]
[1758097285430,0.06,236.38,236.37,74.5002063]
[1758097285949,0.06,236.38,236.37,41.1802063]
[1758097286244,0.06,236.38,236.37,78.73086162]
[1758097286919,0.06,236.38,236.37,52.73086162]
[1758097287523,0.06,236.38,236.37,64.32445722]
[1758097287722,0.06,236.38,236.37,65.62474637]
[1758097289840,0.06,236.38,236.37,65.60474637]
[1758097290034,0.06,236.38,236.37,61.37409105]
[1758097294538,0.06,236.38,236.37,28.07409105]
[1758097294738,0.06,236.38,236.37,61.37409105]
[1758097295041,0.06,236.38,236.37,61.35409105]
[1758097298565,0.06,236.38,236.37,65.58474637]
[1758097304055,0.06,236.38,236.37,32.30474637]
[1758097304357,0.06,236.38,236.37,65.58474637]
[1758097305052,0.06,236.38,236.37,65.56474637]
[1758097310349,0.06,236.38,236.37,32.30474637]
[1758097310653,0.06,236.38,236.37,65.56474637]
[1758097318964,0.06,236.38,236.37,64.26445722]
[1758097319160,0.06,236.38,236.37,65.56474637]
[1758097320556,0.06,236.38,236.37,65.54474637]
[1758097321645,5.59077347,236.38,236.35,0.03]
[1758097321965,1.30028915,236.36,236.35,0.03]
[1758097322559,4.29048432,236.38,236.35,0.03]
[1758097322560,5.53098624,236.37,236.35,0.03]
[1758097323673,1.30028915,236.36,236.35,33.25]
[1758097324172,1.30028915,236.37,236.35,33.25]
[1758097324970,1.30028915,236.36,236.35,33.25]
[1758097325760,1.30028915,236.36,236.35,0.03]
[1758097325967,31.53112347,236.36,236.35,0.03]
[1758097326162,36.73228007,236.36,236.35,0.03]
[1758097326351,38.42744673,236.36,236.35,0.03]
[1758097326769,49.00453253,236.36,236.32,0.03]
[1758097327072,26.0,236.31,236.3,0.03]
[1758097327257,27.30028915,236.31,236.3,0.03]
[1758097327674,28.99581508,236.31,236.3,0.03]
[1758097328157,33.22754458,236.31,236.3,0.03]
[1758097328479,31.53201865,236.31,236.3,0.03]
[1758097328894,4.2317295,236.31,236.3,0.03]
[1758097329177,30.2317295,236.31,236.3,0.03]
[1758097329469,31.53201865,236.31,236.3,0.03]
[1758097332781,33.22754458,236.31,236.3,0.03]
[1758097333568,66.44754458,236.31,236.3,0.03]
[1758097334361,26.0,236.27,236.23,0.03]
[1758097334556,27.30028915,236.24,236.23,0.03]
[1758097335384,1.30028915,236.24,236.23,0.03]
[1758097335679,31.53327255,236.24,236.23,0.03]
[1758097336786,30.2329834,236.24,236.23,0.03]
[1758097337285,1.69574157,236.27,236.23,1.33028915]
[1758097337481,10.58031602,236.29,236.23,1.33028915]
[1758097337787,30.23208768,236.29,236.23,2.06390969]
[1758097339167,12.61292266,236.32,236.25,2.03390969]
[1758097339374,4.23192519,236.3,236.26,2.03390969]
[1758097339669,4.23192519,236.3,236.25,2.03390969]
[1758097339869,6.26583488,236.3,236.24,2.03390969]
[1758097340488,4.23192519,236.3,236.25,2.03390969]
[1758097341274,4.23192519,236.3,236.26,2.03390969]
[1758097343469,4.23192519,236.3,236.25,2.03390969]
[1758097343669,6.26583488,236.3,236.23,0.03]
[1758097343968,2.03390969,236.28,236.23,0.03]
[1758097344481,2.03390969,236.26,236.23,0.03]
[1758097345286,0.06,236.28,236.23,0.03]
[1758097345481,2.09390969,236.28,236.23,0.03]
[1758097345669,4.23244593,236.27,236.23,0.03]
[1758097346579,0.06,236.28,236.25,2.03390969]
[1758097346785,4.29227254,236.28,236.25,2.03390969]
[1758097347168,4.29227254,236.28,236.23,2.06390969]
[1758097350584,4.29227254,236.28,236.23,0.03]
[1758097350892,4.29227254,236.28,236.23,2.06390969]
[1758097352484,0.06,236.28,236.25,2.03390969]
[1758097352677,4.29228008,236.28,236.25,2.03390969]
[1758097352890,4.29228008,236.28,236.24,2.03390969]
[1758097354972,4.29228008,236.28,236.23,0.03]
[1758097355170,4.29228008,236.28,236.23,2.06390969]
[1758097356470,4.29228008,236.28,236.23,0.03]
[1758097356676,4.29228008,236.28,236.24,2.03390969]
[1758097356877,0.06,236.28,236.24,2.03390969]
[1758097357180,4.29228945,236.28,236.24,2.03390969]
[1758097363399,0.06,236.28,236.27,2.03390969]
[1758097363602,0.06,236.28,236.27,49.09382684]
[1758097365396,0.06,236.28,236.27,53.32627277]
[1758097369283,0.06,236.28,236.27,132.82627277]
[1758097369493,0.06,236.31,236.3,39.87991715]
[1758097369682,0.06,236.31,236.3,41.91382684]
[1758097370094,0.06,236.33,236.31,13.87991715]
[1758097370289,0.06,236.33,236.32,49.07382684]
[1758097370890,0.06,236.38,236.36,39.59559401]
[1758097371108,0.06,236.38,236.37,2.31823283]
[1758097371297,0.06,236.38,236.37,13.59559401]
[1758097371497,0.06,236.38,236.37,46.75559401]
[1758097372085,0.06,236.38,236.37,49.07382684]
[1758097372595,0.06,236.38,236.37,61.94485234]
[1758097373687,0.06,236.38,236.37,62.36791787]
[1758097373999,0.06,236.4,236.39,39.87991715]
[1758097374194,0.06,236.4,236.39,41.91382684]
[1758097374398,0.06,236.4,236.39,39.87991715]
[1758097374589,0.06,236.4,236.39,73.01991715]
[1758097374783,0.06,236.4,236.39,47.01991715]
[1758097374991,0.06,236.4,236.39,49.05382684]
[1758097375189,0.06,236.4,236.39,47.01991715]
[1758097375499,0.06,236.4,236.39,49.05382684]
[1758097376416,0.06,236.4,236.39,33.14]
[1758097383031,6.32403913,236.4,236.31,4.23157537]
[1758097383204,2.03390969,236.39,236.33,33.12]
[1758097383525,6.26429464,236.39,236.33,33.12]
[1758097384549,4.23038495,236.39,236.33,35.15390969]
[1758097385620,4.23038495,236.39,236.33,33.12]
[1758097385799,2.03390969,236.38,236.33,33.12]
[1758097386113,6.26429464,236.39,236.33,33.12]
[1758097387514,4.23038495,236.39,236.33,33.12]
[1758097387693,4.23038495,236.39,236.34,2.03390969]
[1758097387898,2.09390969,236.4,236.38,2.03390969]
[1758097387899,0.06,236.4,236.38,2.03390969]
[1758097388217,0.06,236.4,236.39,2.03390969]
[1758097391314,0.06,236.4,236.39,35.15390969]
[1758097392428,0.06,236.4,236.39,49.03382684]
[1758097395006,0.06,236.4,236.39,33.1]
[1758097395934,0.06,236.4,236.39,35.13390969]
[1758097396124,0.06,236.4,236.39,48.7295037]
[1758097396725,0.06,236.4,236.39,53.24412422]
[1758097397930,0.06,236.4,236.39,52.50981226]
[1758097401948,0.06,236.4,236.39,33.1]
[1758097402141,0.06,236.4,236.39,47.99519174]
[1758097402440,0.06,236.4,236.39,48.27951488]
[1758097403846,0.06,236.4,236.39,52.50981226]
[1758097406259,0.06,236.4,236.39,132.00981226]
[1758097407962,0.06,236.4,236.39,78.50981226]
[1758097408246,1e-08,236.43,236.42,41.17951488]
[1758097408452,1e-08,236.43,236.42,39.87991715]
[1758097408653,1e-08,236.43,236.42,48.25951488]
[1758097408837,1e-08,236.43,236.42,48.11735331]
[1758097409037,1e-08,236.43,236.42,48.25951488]
[1758097409234,1e-08,236.43,236.42,15.17951488]
[1758097409529,1e-08,236.43,236.42,48.25951488]
[1758097409730,1e-08,236.43,236.42,52.48927547]
[1758097412456,1e-08,236.43,236.42,48.25951488]
[1758097419460,1e-08,236.43,236.42,52.48927547]
[1758097421555,1e-08,236.43,236.42,19.40927547]
[1758097421760,1e-08,236.43,236.42,52.46927547]
[1758097424470,1e-08,236.43,236.42,13.59559401]
[1758097424645,1e-08,236.43,236.42,52.46927547]
[1758097429159,1e-08,236.43,236.42,52.89225152]
[1758097429368,0.06,236.48,236.45,39.59559401]
[1758097429666,0.06,236.48,236.47,24.60677204]
[1758097431355,0.06,236.48,236.47,57.64677204]
[1758097435065,0.06,236.48,236.47,137.14677204]
[1758097435451,0.06,236.48,236.41,0.03]
[1758097435662,0.06,236.48,236.46,1.29959773]
[1758097435852,0.06,236.48,236.47,46.63559401]
[1758097436164,0.06,236.48,236.47,47.93519174]
[1758097436482,0.06,236.48,236.47,48.21951488]
[1758097437949,0.06,236.48,236.47,46.91991715]
[1758097439751,0.06,236.48,236.47,48.21951488]
[1758097440258,0.06,236.48,236.47,46.91991715]
[1758097440459,0.06,236.48,236.47,48.21951488]
[1758097443673,0.06,236.48,236.47,52.44838112]
[1758097443874,0.06,236.48,236.47,51.14878339]
[1758097444078,0.06,236.48,236.47,52.44838112]
[1758097444384,0.06,236.48,236.47,51.14878339]
[1758097444586,4.28872437,236.48,236.42,1.29959773]
[1758097444784,1.29959773,236.47,236.42,13.59559401]
[1758097444963,1.29959773,236.47,236.41,0.03]
[1758097444964,5.5883221,236.48,236.44,13.59559401]
[1758097445161,4.28872437,236.48,236.45,33.02]
[1758097445465,0.06,236.48,236.45,34.31959773]
[1758097446376,0.06,236.48,236.47,15.17951488]
[1758097446575,0.06,236.48,236.47,48.19951488]
[1758097446786,0.06,236.48,236.47,46.61559401]
[1758097448687,0.06,236.48,236.47,47.91519174]
[1758097451972,0.06,236.48,236.47,48.19951488]
[1758097452478,0.06,236.48,236.47,52.42838112]
[1758097452986,0.06,236.48,236.47,57.62677204]
[1758097454391,0.1,236.5,236.49,39.59559401]
[1758097454561,0.1,236.5,236.49,74.19951488]
[1758097455770,0.1,236.5,236.49,39.87991715]
[1758097456087,0.1,236.5,236.49,78.42802348]